Workbook

Sheet الضريبة
B1: من | C1: 1 | D1: =C2+1 -> 50001 | E1: =D2+1 -> 80001 | F1: =E2+1 -> 110001 | G1: 140001 | H1: 170001 | I1: 200001 | J1: 230001 | K1: 260001 | L1: النتيجة المطلوبة
B2: الي | C2: 50000 | D2: =D1+30000-1 -> 80000 | E2: =E1+30000-1 -> 110000 | F2: =F1+30000-1 -> 140000 | G2: 170000 | H2: 200000 | I2: 230000 | J2: 260000 | L2: مجموع الضريبة
B3: المستحق | C3: 0 | D3: 0.04 | E3: 0.06 | F3: 0.08 | G3: 0.1 | H3: 0.12 | I3: 0.14 | J3: 0.16 | K3: 0.18 | N3: الشريحة | Q3: النسبة
B4: مثال | C4: =B6/D3*B6 -> 160000000000 | D4: =B6*D3 -> 3200 | N4: من 1 الى 50000 | Q4: معفاة 0
B5: 50000 | C5: =IF($B5>=C$1,IF($B5<=C$2,$B5*C$3,IF(C$2="",$B5*C$3,0)),0) -> 0 | D5: =IF($B5>=D$1,IF($B5<=D$2,$B5*D$3,IF(D$2="",$B5*D$3,0)),0) -> 0 | E5: 0 | F5: 0 | G5: 0 | H5: 0 | I5: 0 | J5: 0 | K5: 0 | L5: =SUMPRODUCT(C5:K5) -> 0 | N5: من 50001 الى 80000 | Q5: 0.04
B6: 80000 | C6: =IF($B6>=C$1,IF($B6<=C$2,$B6*C$3,IF(C$2="",$B6*C$3,0)),0) -> 0 | D6: 3200 | E6: 0 | F6: 0 | G6: 0 | H6: 0 | I6: 0 | J6: 0 | K6: 0 | L6: =SUMPRODUCT(C6:K6) -> 3200 | N6: من 80001 الى 110000 | Q6: 0.06
B7: 110000 | C7: 0 | D7: 0 | E7: 6600 | F7: 0 | G7: 0 | H7: 0 | I7: 0 | J7: 0 | K7: 0 | L7: 6600 | N7: من 110001 الى 140000 | Q7: 0.08
B8: 140000 | C8: 0 | D8: 0 | E8: 0 | F8: 11200 | G8: 0 | H8: 0 | I8: 0 | J8: 0 | K8: 0 | L8: 11200 | N8: من 140001 الى 170000 | Q8: 0.1
B9: 170000 | C9: 0 | D9: 0 | E9: 0 | F9: 0 | G9: 17000 | H9: 0 | I9: 0 | J9: 0 | K9: 0 | L9: 17000 | N9: من 170001 الى 200000 | Q9: 0.12
B10: 200000 | C10: 0 | D10: 0 | E10: 0 | F10: 0 | G10: 0 | H10: 24000 | I10: 0 | J10: 0 | K10: 0 | L10: 24000 | N10: من 200001 الى 230000 | Q10: 0.14
B11: 230000 | C11: 0 | D11: 0 | E11: 0 | F11: 0 | G11: 0 | H11: 0 | I11: 32200 | J11: 0 | K11: 0 | L11: 32200 | N11: من 230001 الى 260000 | Q11: 0.16
B12: 260000 | C12: 0 | D12: 0 | E12: 0 | F12: 0 | G12: 0 | H12: 0 | I12: 0 | J12: 41600 | K12: 0 | L12: 41600 | N12: اكثر من : 260000 | Q12: 0.18
B13: 290000 | C13: 0 | D13: 0 | E13: 0 | F13: 0 | G13: 0 | H13: 0 | I13: 0 | J13: 0 | K13: 52200 | L13: 52200
B16: مثال
B17: 52000 | C17: 0 | D17: 2080 | E17: 0 | F17: 0 | G17: 0 | H17: 0 | I17: 0 | J17: 0 | K17: 0 | L17: 2080
B18: =B17+30000 -> 82000 | C18: 0 | D18: 0 | E18: 4920 | F18: 0 | G18: 0 | H18: 0 | I18: 0 | J18: 0 | K18: 0 | L18: 4920
B19: =B18+30000 -> 112000 | C19: 0 | D19: 0 | E19: 0 | F19: 8960 | G19: 0 | H19: 0 | I19: 0 | J19: 0 | K19: 0 | L19: 8960
B20: 142000 | C20: 0 | D20: 0 | E20: 0 | F20: 0 | G20: 14200 | H20: 0 | I20: 0 | J20: 0 | K20: 0 | L20: 14200
B21: 172000 | C21: 0 | D21: 0 | E21: 0 | F21: 0 | G21: 0 | H21: 20640 | I21: 0 | J21: 0 | K21: 0 | L21: 20640
B22: 202000 | C22: =IF($B22>=C$1,IF($B22<=C$2,$B22*C$3,IF(C$2="",$B22*C$3,0)),0) -> 0 | D22: 0 | E22: 0 | F22: 0 | G22: 0 | H22: 0 | I22: 28280 | J22: 0 | K22: 0 | L22: 28280
B23: 232000 | C23: 0 | D23: 0 | E23: 0 | F23: 0 | G23: 0 | H23: 0 | I23: 0 | J23: 37120 | K23: 0 | L23: 37120
B24: 262000 | C24: 0 | D24: 0 | E24: 0 | F24: 0 | G24: 0 | H24: 0 | I24: 0 | J24: 0 | K24: 47160 | L24: 47160
B25: 292000 | C25: 0 | D25: 0 | E25: 0 | F25: 0 | G25: 0 | H25: 0 | I25: 0 | J25: 0 | K25: 52560 | L25: 52560

Sheet الشرائح
F3: النسبة | G3: قيمة الشريحة | H3: مبلغ الضريبة | J3: الضريبة تراكمي
B4: 0 | C4: 50000 | F4: معفاة | H4: 0
B5: 1 | C5: من 50001 الى 80000 | F5: 0.04 | G5: =80000-50001 -> 29999 | H5: =G5*F5 -> 1199.96 | I5: 1200 | J5: 1200 | L5: 30000 | N5: 30000 | O5: 30000
B6: 2 | C6: من 80001 الى 110000 | F6: 0.06 | G6: =110000-80001 -> 29999 | H6: 1799.94 | I6: 1800 | J6: =J5+I6 -> 3000 | L6: 30000 | N6: 30000 | O6: =O5+N6 -> 60000
B7: 3 | C7: من 110001 الى 140000 | F7: 0.08 | G7: =140000-110001 -> 29999 | H7: 2399.92 | I7: 2400 | J7: 5400 | L7: 30000 | N7: 30000 | O7: 90000
B8: 4 | C8: من 140001 الى 170000 | F8: 0.1 | G8: =170000-140001 -> 29999 | H8: 2999.9 | I8: 3000 | J8: 8400 | L8: 30000 | N8: 30000 | O8: 120000
B9: 5 | C9: من 170001 الى 200000 | F9: 0.12 | G9: =200000-170001 -> 29999 | H9: 3599.88 | I9: 3600 | J9: 12000 | L9: 30000 | N9: 30000 | O9: 150000
B10: 6 | C10: من 200001 الى 230000 | F10: 0.14 | G10: =230000-200001 -> 29999 | H10: 4199.86 | I10: 4200 | J10: 16200 | L10: 30000 | N10: 30000 | O10: 180000
B11: 7 | C11: من 230001 الى 260000 | F11: 0.16 | G11: =260000-230001 -> 29999 | H11: 4799.84 | I11: 4800 | J11: 21000 | L11: 30000 | N11: 30000 | O11: 210000
B12: 8 | C12: اكثر من : 260000 | F12: 0.18
